bitfinex/quotes_BTCUSD_20250224
["timestamp","ask_amount","ask_price","bid_price","bid_amount"]
[1740368647395,0.156346,95941.0,95940.0,0.014]
[1740368647580,0.156346,95941.0,95940.0,0.007]
[1740368647789,0.306346,95941.0,95940.0,0.014]
[1740368647986,0.306346,95941.0,95940.0,0.007]
[1740368648202,0.306346,95941.0,95939.0,0.23424]
[1740368648404,0.306346,95941.0,95940.0,0.006]
[1740368648612,0.306346,95941.0,95940.0,0.013]
[1740368648985,0.306346,95941.0,95940.0,0.006]
[1740368649792,0.306346,95941.0,95939.0,0.24024]
[1740368650029,0.306346,95941.0,95940.0,0.00736448]
[1740368650251,0.306346,95941.0,95940.0,0.01336448]
[1740368650676,0.306346,95941.0,95940.0,0.00836448]
[1740368651391,0.32290853,95941.0,95940.0,0.00236448]
[1740368651604,0.32290853,95941.0,95940.0,0.005]
[1740368651823,0.32290853,95941.0,95940.0,0.011]
[1740368652242,0.32290853,95941.0,95940.0,0.005]
[1740368652452,0.306346,95941.0,95940.0,0.005]
[1740368652660,0.306346,95941.0,95940.0,0.011]
[1740368655296,1.255521,95941.0,95940.0,0.011]
[1740368655494,1.71385,95941.0,95940.0,0.011]
[1740368655701,1.85309469,95941.0,95940.0,0.011]
[1740368655912,1.78776369,95941.0,95940.0,0.011]
[1740368656092,1.35378969,95941.0,95940.0,0.011]
[1740368656295,0.15637,95926.0,95908.0,0.31063501]
[1740368656502,0.15637,95926.0,95910.0,0.208528]
[1740368657086,0.15637,95926.0,95908.0,0.0826]
[1740368657294,0.15637,95926.0,95911.0,0.156393]
[1740368657502,0.16778339,95926.0,95911.0,0.156393]
[1740368657846,0.16778339,95926.0,95925.0,0.0076988]
[1740368658271,0.16778339,95926.0,95925.0,0.0146988]
[1740368658458,0.76888939,95926.0,95925.0,0.0146988]
[1740368659010,0.91888939,95926.0,95925.0,0.0146988]
[1740368659626,1.02153508,95926.0,95925.0,0.0146988]
[1740368660464,1.02153508,95926.0,95925.0,0.0086988]
[1740368660753,1.02153508,95926.0,95925.0,0.0126988]
[1740368660978,1.02153508,95926.0,95925.0,0.0056988]
[1740368661227,1.02153508,95926.0,95925.0,0.0106988]
[1740368661405,0.91888939,95926.0,95925.0,0.0106988]
[1740368663877,1.01674279,95926.0,95925.0,0.0106988]
[1740368665825,0.77212579,95926.0,95925.0,0.0106988]
[1740368666950,0.58368279,95926.0,95925.0,0.0106988]
[1740368667151,0.41563679,95926.0,95925.0,0.0106988]
[1740368669340,1.73379854,95926.0,95925.0,0.0106988]
[1740368669734,1.62050154,95926.0,95925.0,0.0106988]
[1740368670349,1.23899979,95926.0,95925.0,0.0106988]
[1740368670490,1.09854179,95926.0,95925.0,0.0106988]
[1740368670874,0.59583479,95926.0,95925.0,0.0106988]
[1740368671036,0.55506379,95926.0,95925.0,0.0106988]
[1740368671244,0.41563679,95926.0,95925.0,0.0106988]
[1740368673677,0.26563679,95926.0,95925.0,0.0106988]
[1740368673901,0.26563679,95926.0,95925.0,0.0890988]
[1740368674305,0.01141339,95926.0,95925.0,0.1380988]
[1740368674502,0.0978534,95947.0,95925.0,0.14089206]
[1740368674712,0.156369,95927.0,95925.0,0.14089206]
[1740368674913,0.156369,95927.0,95925.0,0.1330988]
[1740368675131,0.156369,95927.0,95926.0,0.00279479]
[1740368675311,0.1710872,95927.0,95925.0,0.1380988]
[1740368675509,0.1710872,95927.0,95925.0,0.1340988]
[1740368675865,0.1710872,95927.0,95925.0,0.1330988]
[1740368676070,0.1710872,95927.0,95925.0,0.1400988]
[1740368676195,0.1710872,95927.0,95925.0,0.1360988]
[1740368676396,0.1710872,95927.0,95925.0,0.1420988]
[1740368679125,0.1710872,95927.0,95926.0,0.00279328]
[1740368680499,0.1710872,95927.0,95926.0,0.00879328]
[1740368681177,0.1710872,95927.0,95926.0,0.01579328]
[1740368685147,0.1710872,95927.0,95926.0,0.09579328]
[1740368685403,0.0147182,95927.0,95926.0,0.09579328]
[1740368685805,0.159359,95933.0,95926.0,0.09579328]
[1740368686033,0.003,95933.0,95926.0,0.09579328]
[1740368686241,0.156362,95931.0,95926.0,0.09579328]
[1740368686464,0.208481,95932.0,95926.0,0.09579328]
[1740368686636,0.01416147,95931.0,95926.0,0.09579328]
[1740368686890,0.21148,95933.0,95926.0,0.08979328]
[1740368687306,0.003,95933.0,95926.0,0.08979328]
[1740368687513,0.156362,95931.0,95926.0,0.08279328]
[1740368687740,0.156362,95931.0,95926.0,0.08779328]
[1740368687944,0.01774078,95933.0,95926.0,0.08779328]
[1740368688570,0.01774078,95933.0,95926.0,0.08279328]
[1740368688783,0.01774078,95933.0,95926.0,0.24916328]
[1740368689135,0.01774078,95933.0,95926.0,0.24316328]
[1740368689556,0.01774078,95933.0,95927.0,0.10264569]
[1740368689756,0.01774078,95933.0,95928.0,0.082]
[1740368689954,0.01774078,95933.0,95928.0,0.08479486]
[1740368690171,0.15636,95932.0,95928.0,0.08479486]
[1740368690958,0.01774078,95933.0,95928.0,0.08479486]
[1740368690959,0.156362,95931.0,95928.0,0.08479486]
[1740368691171,0.01774078,95933.0,95928.0,0.08479486]
[1740368691811,0.01774078,95933.0,95928.0,0.09079486]
[1740368692217,0.01774078,95933.0,95928.0,0.08479486]
[1740368692422,0.01774078,95933.0,95928.0,0.08879486]
[1740368692833,0.01774078,95933.0,95928.0,0.09379486]
[1740368693049,0.01774078,95933.0,95930.0,0.0751]
[1740368693248,0.01774078,95933.0,95931.0,0.10264569]
[1740368693455,0.01774078,95933.0,95931.0,0.10544508]
[1740368695466,0.01774078,95933.0,95931.0,0.11444508]
[1740368701278,0.15636,95932.0,95931.0,0.11444508]
[1740368702120,0.01774078,95933.0,95931.0,0.10944508]
[1740368702311,0.15636,95932.0,95931.0,0.10544508]
[1740368702770,0.01774078,95933.0,95931.0,0.10544508]
[1740368703205,0.003,95933.0,95932.0,0.28506]
[1740368703415,0.003,95933.0,95932.0,0.38770569]
[1740368703619,0.003,95933.0,95932.0,0.39097174]
[1740368704387,0.003,95933.0,95932.0,0.39797174]
[1740368705015,0.003,95933.0,95932.0,0.23461174]
[1740368705423,0.003,95933.0,95932.0,0.24161174]
[1740368705619,0.003,95933.0,95932.0,0.14596605]
[1740368705845,0.003,95933.0,95932.0,0.01026605]
[1740368706275,0.003,95933.0,95932.0,0.014]
[1740368706481,0.003,95933.0,95932.0,0.007]
[1740368706924,0.15636,95932.0,95931.0,0.001699]
[1740368707403,0.30636,95932.0,95931.0,0.001699]
[1740368708642,0.30636,95932.0,95931.0,0.005699]
[1740368709051,0.30636,95932.0,95931.0,0.014699]
[1740368709474,0.30636,95932.0,95931.0,0.006699]
[1740368709631,0.30636,95932.0,95931.0,0.010699]
[1740368710330,0.30636,95932.0,95931.0,0.005699]
[1740368711044,0.30636,95932.0,95931.0,0.006699]
[1740368711278,0.30636,95932.0,95931.0,0.010699]
[1740368711531,0.31417179,95932.0,95931.0,0.005699]
[1740368712000,0.31417179,95932.0,95931.0,0.010699]
[1740368712711,0.31417179,95932.0,95931.0,0.006699]
[1740368713408,0.31417179,95932.0,95931.0,0.005699]
[1740368713543,0.31417179,95932.0,95931.0,0.010699]
[1740368713966,0.31417179,95932.0,95931.0,0.005699]
[1740368714371,0.31417179,95932.0,95931.0,0.010699]
[1740368714584,0.31417179,95932.0,95931.0,0.006699]
[1740368715519,0.30636,95932.0,95931.0,0.010699]
[1740368715784,0.30636,95932.0,95931.0,0.006699]
[1740368716159,0.30636,95932.0,95931.0,0.010699]
[1740368716676,0.30636,95932.0,95931.0,0.006699]
[1740368716918,0.30636,95932.0,95931.0,0.001699]
[1740368717130,0.30636,95932.0,95931.0,0.006699]
[1740368717665,0.30636,95932.0,95931.0,0.001699]
[1740368717854,0.30636,95932.0,95931.0,0.007699]
[1740368717997,0.30636,95932.0,95931.0,0.013699]
[1740368718215,0.15,95932.0,95931.0,0.007699]
[1740368718407,0.30636,95932.0,95931.0,0.090099]
[1740368718613,0.30636,95932.0,95931.0,0.09336798]
[1740368719062,0.30636,95932.0,95931.0,0.08736798]
[1740368719200,0.30636,95932.0,95931.0,0.080099]
[1740368719662,0.30636,95932.0,95931.0,0.086099]
[1740368720171,0.15636,95932.0,95931.0,0.086099]
[1740368720402,0.15636,95932.0,95931.0,0.09536798]
[1740368720894,0.15636,95932.0,95931.0,0.08936798]
[1740368721137,0.15636,95932.0,95931.0,0.08336798]
[1740368721343,0.15636,95932.0,95931.0,0.08936798]
[1740368721618,0.003,95933.0,95931.0,0.09036798]
[1740368721864,0.159359,95933.0,95931.0,0.08936798]
[1740368722096,0.159359,95933.0,95931.0,0.08336798]
[1740368722324,0.003,95933.0,95931.0,0.09036798]
[1740368722556,0.003,95933.0,95931.0,0.09636798]
[1740368722795,0.003,95933.0,95931.0,0.09036798]
[1740368723276,0.003,95933.0,95932.0,0.25900569]
[1740368723526,0.003,95933.0,95932.0,0.33829795]
[1740368724174,0.003,95933.0,95932.0,0.18193795]
[1740368724647,0.003,95933.0,95932.0,0.18893795]
[1740368724840,0.003,95933.0,95932.0,0.17393795]
[1740368725258,0.003,95933.0,95932.0,0.18093795]
[1740368725736,0.003,95933.0,95932.0,0.17393795]
[1740368726138,0.003,95933.0,95932.0,0.21913795]
[1740368726971,0.003,95933.0,95932.0,0.22613795]
[1740368727395,0.003,95933.0,95932.0,0.2336788]
[1740368727836,0.003,95933.0,95932.0,0.2406788]
[1740368728255,0.003,95933.0,95932.0,0.2336788]
[1740368728875,0.003,95933.0,95932.0,0.2406788]
[1740368729082,0.003,95933.0,95932.0,0.2336788]
[1740368729960,0.003,95933.0,95932.0,0.2266788]
[1740368730296,0.003,95933.0,95932.0,0.2336788]
[1740368730504,0.003,95933.0,95932.0,0.2406788]
[1740368730725,0.003,95933.0,95932.0,0.2266788]
[1740368730937,0.003,95933.0,95932.0,0.2406788]
[1740368731341,0.003,95933.0,95932.0,0.2336788]
[1740368731575,0.003,95933.0,95932.0,0.2266788]
[1740368731759,0.003,95933.0,95932.0,0.2406788]
[1740368731937,0.003,95933.0,95932.0,0.2336788]
[1740368732480,0.003,95933.0,95932.0,0.2406788]
[1740368732643,0.003,95933.0,95932.0,0.24334802]
[1740368733079,0.003,95933.0,95932.0,0.23634802]
[1740368733454,0.003,95933.0,95932.0,0.24334802]
[1740368733678,0.003,95933.0,95932.0,0.23634802]
[1740368734523,0.003,95933.0,95932.0,0.24334802]
[1740368734743,0.003,95933.0,95932.0,0.23634802]
[1740368734973,0.003,95933.0,95932.0,0.24334802]
[1740368735432,0.003,95933.0,95932.0,0.23634802]
[1740368735637,0.003,95933.0,95932.0,0.24334802]
[1740368736995,0.003,95933.0,95932.0,0.23634802]
[1740368737507,0.003,95933.0,95932.0,0.24334802]
[1740368740172,0.16963322,95952.0,95941.0,0.01454085]
[1740368740421,0.01330422,95952.0,95944.0,0.15634]
[1740368740736,0.16193044,95958.0,95945.0,0.25898469]
[1740368740884,0.156322,95956.0,95945.0,0.25898469]
[1740368741181,0.16994221,95956.0,95945.0,0.25898469]
[1740368741961,0.16994221,95956.0,95946.0,8.938e-05]
[1740368742207,0.01362021,95956.0,95947.0,0.10264569]
[1740368742420,0.208419,95961.0,95949.0,0.0787]
[1740368742663,0.156317,95959.0,95950.0,0.10264569]
[1740368742896,0.156314,95961.0,95950.0,0.10273507]
[1740368743116,0.16980578,95961.0,95950.0,0.10273507]
[1740368743333,0.01349178,95961.0,95950.0,0.10273507]
[1740368743532,0.15,95965.0,95951.0,0.156329]
[1740368743789,0.15,95965.0,95953.0,0.0787]
[1740368744031,0.000849,95973.0,95955.0,0.01454085]
[1740368744261,0.000849,95973.0,95957.0,0.01454085]
[1740368744465,0.208396,95971.0,95958.0,0.10264569]
[1740368744706,0.15,95967.0,95958.0,0.10318146]
[1740368745122,0.156316,95960.0,95958.0,0.00062515]
[1740368745780,0.156316,95960.0,95958.0,0.00408938]
[1740368745958,0.156316,95960.0,95958.0,8.938e-05]
[1740368746379,0.15,95959.0,95958.0,8.938e-05]
[1740368746591,0.8059659,95959.0,95958.0,8.938e-05]
[1740368747242,0.8059659,95959.0,95958.0,0.00508938]
[1740368747447,0.8059659,95959.0,95958.0,8.938e-05]
[1740368747652,0.2073149,95959.0,95958.0,0.00308938]
[1740368747863,1.478185,95959.0,95958.0,0.00508938]
[1740368748014,0.258512,95959.0,95958.0,0.00508938]
[1740368748477,0.15,95959.0,95958.0,0.00508938]
[1740368751406,0.15,95959.0,95958.0,0.00208938]
[1740368751609,0.15,95959.0,95958.0,0.00308938]
[1740368751811,0.15,95959.0,95958.0,0.00608938]
[1740368752024,0.15,95959.0,95958.0,0.00308938]
[1740368752993,0.15,95959.0,95958.0,8.938e-05]
[1740368753414,1.310047,95959.0,95958.0,0.00408938]
[1740368753829,1.239807,95959.0,95958.0,0.00408938]
[1740368754060,1.228905,95959.0,95958.0,0.00708938]
[1740368754867,1.056957,95959.0,95958.0,0.00708938]
[1740368755671,0.6727186,95959.0,95958.0,0.00708938]
[1740368755896,0.6367116,95959.0,95958.0,0.00708938]
[1740368756106,0.6142686,95959.0,95958.0,0.00708938]
[1740368756560,0.6142686,95959.0,95936.0,0.0787]
[1740368756561,0.156352,95937.0,95936.0,0.0787]
[1740368756885,0.156352,95937.0,95936.0,0.08288799]
[1740368757509,0.156352,95937.0,95936.0,0.0787]
[1740368758085,0.156352,95937.0,95936.0,0.08288799]
[1740368758226,0.156352,95937.0,95936.0,0.08988799]
[1740368759340,0.156352,95937.0,95936.0,0.09688799]
[1740368762929,0.23531521,95937.0,95936.0,0.01818799]
[1740368763134,0.156352,95937.0,95936.0,0.01818799]
[1740368763296,0.156352,95937.0,95936.0,0.014]
[1740368763901,0.208467,95939.0,95932.0,0.0016996]
[1740368764120,0.156359,95933.0,95932.0,0.0016996]
[1740368765393,0.156359,95933.0,95932.0,0.0086996]
[1740368766447,0.157359,95933.0,95932.0,0.0156996]
[1740368766860,0.157359,95933.0,95932.0,0.01629186]
[1740368774001,0.157359,95933.0,95932.0,0.0156996]
[1740368775574,0.307359,95933.0,95932.0,0.0156996]
[1740368775800,0.306359,95933.0,95932.0,0.0086996]
[1740368776015,0.306359,95933.0,95932.0,0.0156996]
[1740368776533,0.306359,95933.0,95932.0,0.0016996]
[1740368776834,0.306359,95933.0,95932.0,0.0076996]
[1740368776991,0.306359,95933.0,95932.0,0.0016996]
[1740368777422,0.306359,95933.0,95932.0,0.0056996]
[1740368777740,1.311374,95933.0,95932.0,0.0056996]
[1740368777875,1.312374,95933.0,95932.0,0.0116996]
[1740368781538,1.13036,95933.0,95932.0,0.0116996]
[1740368781748,1.094353,95933.0,95932.0,0.0116996]
[1740368781983,1.094353,95933.0,95931.0,6e-07]
[1740368781984,0.30636,95932.0,95931.0,6e-07]
[1740368782153,0.156396,95910.0,95909.0,0.0823]
[1740368782552,0.156396,95910.0,95909.0,0.08655866]
[1740368782787,0.156396,95910.0,95909.0,0.0823]
[1740368782992,0.156396,95910.0,95909.0,0.00425866]
[1740368783362,0.156396,95910.0,95906.0,0.0479]
[1740368783363,0.156401,95907.0,95906.0,0.0479]
[1740368784731,0.156408,95903.0,95902.0,0.0824]
[1740368785070,0.156408,95903.0,95902.0,0.08667031]
[1740368786496,0.157408,95903.0,95902.0,0.09267031]
[1740368787318,0.158408,95903.0,95902.0,0.09767031]
[1740368788985,0.002,95903.0,95902.0,0.249516]
[1740368789391,0.002,95903.0,95902.0,0.42046585]
[1740368790638,0.001,95903.0,95902.0,0.41546585]
[1740368791036,0.002,95903.0,95902.0,0.42246585]
[1740368791242,0.003,95903.0,95902.0,0.42946585]
[1740368791444,0.002,95903.0,95902.0,0.42416505]
[1740368792470,0.003,95903.0,95902.0,0.43116505]
[1740368796648,0.01713073,95928.0,95920.0,0.25083181]
[1740368796849,0.01713073,95928.0,95921.0,0.14814569]
[1740368797055,0.003,95937.0,95922.0,0.0833]
[1740368797264,0.156366,95929.0,95923.0,0.10264569]
[1740368797470,0.156363,95931.0,95923.0,0.10264569]
[1740368797649,0.156364,95930.0,95923.0,0.10264569]
[1740368798000,0.17379408,95931.0,95923.0,0.10264569]
[1740368798192,0.01743208,95931.0,95924.0,0.0832]
[1740368798445,0.01743208,95931.0,95924.0,0.18584569]
[1740368798641,0.17379408,95931.0,95924.0,0.18584569]
[1740368799615,0.01743208,95931.0,95924.0,0.18584569]
[1740368799845,0.156366,95929.0,95924.0,0.19084569]
[1740368800707,0.156366,95929.0,95924.0,0.18584569]
[1740368800916,0.01743208,95931.0,95925.0,0.00060747]
[1740368801131,0.15637,95926.0,95925.0,0.00060747]
[1740368801343,0.156369,95927.0,95925.0,0.00060747]
[1740368801980,0.156367,95928.0,95925.0,0.00060747]
[1740368802388,0.208487,95929.0,95925.0,0.00760747]
[1740368802516,0.15637,95926.0,95925.0,0.00760747]
[1740368802736,0.15637,95926.0,95925.0,0.01360747]
[1740368802936,0.15637,95926.0,95925.0,0.00760747]
[1740368803177,0.15637,95926.0,95925.0,0.01460747]
[1740368803521,0.15637,95926.0,95925.0,0.00760747]
[1740368804177,0.15637,95926.0,95925.0,0.01460747]
[1740368804596,0.15637,95926.0,95925.0,0.00760747]
[1740368805108,0.15637,95926.0,95925.0,0.01460747]
[1740368807784,0.15637,95926.0,95925.0,0.01824003]
[1740368809433,0.15637,95926.0,95925.0,0.014]
[1740368810251,0.15637,95926.0,95925.0,0.007]
[1740368810423,0.15637,95926.0,95925.0,0.011]
[1740368810752,0.15637,95926.0,95925.0,0.004]
[1740368810971,0.15637,95926.0,95925.0,0.01]
[1740368811388,0.15637,95926.0,95925.0,0.004]
[1740368811827,0.15637,95926.0,95925.0,0.01]
[1740368812137,0.73142,95926.0,95925.0,0.01]
[1740368812347,1.087483,95926.0,95925.0,0.01]
[1740368812937,1.237483,95926.0,95925.0,0.01]
[1740368813947,1.184567,95926.0,95925.0,0.01]
[1740368814125,0.718311,95926.0,95925.0,0.01]
[1740368817057,0.7191611,95926.0,95925.0,0.01]
[1740368817492,0.82180679,95926.0,95925.0,0.01]
[1740368818572,0.82180679,95926.0,95925.0,0.00518402]
[1740368818771,0.82180679,95926.0,95905.0,0.0778]
[1740368818772,0.156403,95906.0,95905.0,0.0778]
[1740368819153,0.156403,95906.0,95905.0,0.08171766]
[1740368819353,0.156403,95906.0,95905.0,0.0778]
[1740368820128,0.156403,95906.0,95905.0,0.004]
[1740368820790,0.156403,95906.0,95905.0,0.01]
[1740368821126,0.156403,95906.0,95905.0,0.004]
[1740368821487,0.156406,95904.0,95903.0,0.0017002]
[1740368822929,0.156406,95904.0,95903.0,0.0047002]
[1740368823138,0.156406,95904.0,95903.0,0.0087002]
[1740368826123,0.00765229,95911.0,95903.0,0.0087002]
[1740368826325,0.0008501,95926.0,95905.0,0.0483]
[1740368826526,0.15,95915.0,95905.0,0.1261]
[1740368826729,0.156396,95911.0,95905.0,0.1261]
[1740368826950,0.156397,95910.0,95905.0,0.1261]
[1740368827140,0.156392,95913.0,95905.0,0.1261]
[1740368827338,0.15,95911.0,95905.0,0.1261]
[1740368827642,0.0978534,95919.0,95907.0,0.0778]
[1740368827853,0.208513,95917.0,95907.0,0.0778]
[1740368828058,0.156396,95911.0,95907.0,0.0778]
[1740368828253,0.156398,95909.0,95907.0,0.0778]
[1740368829256,0.156403,95906.0,95905.0,0.0503]
[1740368829456,0.156403,95906.0,95905.0,0.002]
[1740368829661,0.156403,95906.0,95903.0,0.00562515]
[1740368829662,0.156406,95904.0,95903.0,0.00562515]
[1740368830076,0.156406,95904.0,95903.0,0.0017002]
[1740368830869,0.156406,95904.0,95903.0,0.0057002]
[1740368831334,0.156406,95904.0,95903.0,0.0087002]
[1740368837664,0.16825394,95906.0,95903.0,0.0087002]
[1740368838069,0.156406,95904.0,95903.0,0.0087002]
[1740368838524,0.156406,95904.0,95903.0,0.0047002]
[1740368838754,0.156406,95904.0,95903.0,0.0017002]
[1740368838974,0.156406,95904.0,95903.0,0.0077002]
[1740368839370,0.156406,95904.0,95903.0,0.0037002]
[1740368839672,0.156406,95904.0,95903.0,0.0077002]
[1740368840079,0.156406,95904.0,95903.0,0.0057002]
[1740368840585,0.156406,95904.0,95903.0,0.0087002]
[1740368841520,0.1572559,95904.0,95903.0,0.0087002]
[1740368844618,0.72721459,95904.0,95903.0,0.0087002]
[1740368844830,0.306429,95890.0,95887.0,0.09360753]
[1740368845251,0.306429,95890.0,95889.0,0.00531578]
[1740368845432,2.97211052,95890.0,95889.0,0.0016996]
[1740368846262,0.306432,95888.0,95887.0,2.3e-07]
[1740368846459,0.52693109,95888.0,95887.0,2.3e-07]
[1740368846689,0.58246596,95888.0,95887.0,2.3e-07]
[1740368846922,0.52693109,95888.0,95887.0,2.3e-07]
[1740368847292,0.306453,95875.0,95860.0,0.0778]
[1740368847534,2.861746,95875.0,95860.0,0.0778]
[1740368848127,2.96439169,95875.0,95852.0,0.0751]
[1740368848374,0.156471,95864.0,95846.0,0.0476]
[1740368848599,1.977854,95864.0,95846.0,0.0476]
[1740368848792,2.08049969,95864.0,95846.0,0.0476]
[1740368849708,2.08049969,95864.0,95863.0,0.0056994]
[1740368849911,1.945335,95864.0,95863.0,0.0056994]
[1740368850152,1.920615,95864.0,95863.0,0.0056994]
[1740368850337,1.920615,95864.0,95863.0,0.0086994]
[1740368851509,2.02326069,95864.0,95863.0,0.0086994]
[1740368851737,2.12590638,95864.0,95863.0,0.0086994]
[1740368853241,2.14157073,95864.0,95863.0,0.0086994]
[1740368853915,2.23942413,95864.0,95863.0,0.0086994]
[1740368855647,2.24737578,95864.0,95863.0,0.0086994]
[1740368861465,2.09737578,95864.0,95863.0,0.0086994]
[1740368861927,2.24737578,95864.0,95863.0,0.0086994]
[1740368862142,0.63323178,95864.0,95863.0,0.0086994]
[1740368862564,3.18852478,95864.0,95863.0,0.0086994]
[1740368862923,3.18852478,95864.0,95863.0,0.00515757]
[1740368863955,3.18852478,95864.0,95863.0,0.003]
[1740368864165,3.18852478,95864.0,95863.0,0.006]
[1740368864920,3.03852478,95864.0,95863.0,0.003]
[1740368865145,3.04659078,95864.0,95863.0,0.003]
[1740368865348,3.04659078,95864.0,95863.0,0.0047004]
[1740368866121,3.04659078,95864.0,95863.0,0.0067004]
[1740368866668,2.98020178,95864.0,95863.0,0.0067004]
[1740368868714,0.306484,95856.0,95846.0,0.0476]
[1740368869297,0.893543,95856.0,95846.0,0.0476]
[1740368869448,2.861777,95856.0,95846.0,0.0476]
[1740368869862,2.861777,95856.0,95855.0,0.0046978]
[1740368870127,2.96442269,95856.0,95855.0,0.003]
[1740368870336,0.306494,95850.0,95849.0,0.0003984]
[1740368870531,2.96443269,95850.0,95849.0,0.0003984]
[1740368870760,3.08228609,95850.0,95849.0,0.0003984]
[1740368872183,3.08328609,95850.0,95849.0,0.0003984]
[1740368872395,3.18593178,95850.0,95849.0,0.0003984]
[1740368875082,2.97070309,95850.0,95849.0,0.0003984]
[1740368875319,2.93309109,95850.0,95849.0,0.0003984]
[1740368875525,0.306509,95841.0,95840.0,0.0016996]
[1740368875757,0.667427,95841.0,95840.0,0.0016996]
[1740368875960,0.703427,95841.0,95840.0,0.0016996]
[1740368876340,0.80607269,95841.0,95840.0,0.0016996]
[1740368876793,0.80607269,95841.0,95840.0,0.0056996]
[1740368877585,0.78989369,95841.0,95840.0,0.0056996]
[1740368878017,0.78989369,95841.0,95840.0,0.0086996]
[1740368878229,0.78989369,95841.0,95840.0,0.0056996]
[1740368878465,0.78989369,95841.0,95840.0,0.0016996]
[1740368878656,0.79389369,95841.0,95840.0,0.0016996]
[1740368878887,0.79789369,95841.0,95840.0,0.0016996]
[1740368879305,0.79389369,95841.0,95840.0,0.0016996]
[1740368879523,0.79789369,95841.0,95840.0,0.0016996]
[1740368879937,0.90053938,95841.0,95840.0,0.0016996]
[1740368880371,0.15,95831.0,95822.0,0.0815]
[1740368880577,0.306538,95823.0,95822.0,0.00605432]
[1740368880785,1.889787,95823.0,95822.0,0.00605432]
[1740368881059,0.306559,95810.0,95809.0,0.0459]
[1740368881485,0.306559,95810.0,95809.0,0.04845732]
[1740368881702,0.306559,95810.0,95809.0,0.0459]
[1740368882194,0.8189092,95810.0,95809.0,0.0459]
[1740368882406,1.3260232,95810.0,95809.0,0.0489]
[1740368882625,1.5470102,95810.0,95809.0,0.0529]
[1740368883243,0.948222,95810.0,95809.0,0.0489]
[1740368883872,0.96383913,95810.0,95809.0,0.0489]
[1740368884099,0.96383913,95810.0,95809.0,0.003]
[1740368884349,0.156576,95800.0,95799.0,0.0459]
[1740368884712,0.156576,95800.0,95799.0,0.04848755]
[1740368886310,0.156576,95800.0,95799.0,0.04948755]
[1740368887536,0.156576,95800.0,95799.0,0.05036925]
[1740368888563,0.2348614,95800.0,95799.0,0.05036925]
[1740368889388,0.2348614,95800.0,95799.0,0.05207045]
[1740368890901,0.2348614,95800.0,95799.0,0.0486012]
[1740368891117,0.3848614,95800.0,95799.0,0.0486012]
[1740368891331,0.5536514,95800.0,95799.0,0.0017012]
[1740368891854,0.5536514,95800.0,95799.0,0.0037012]
[1740368893999,0.5536514,95800.0,95799.0,0.0017012]
[1740368895511,0.6555048,95800.0,95799.0,0.0017012]
[1740368895716,0.6535048,95800.0,95799.0,0.0017012]
[1740368896155,0.6555048,95800.0,95799.0,0.0017012]
[1740368896757,0.6535048,95800.0,95799.0,0.0017012]
[1740368896947,0.306586,95794.0,95790.0,0.0815]
[1740368897157,1.74339,95794.0,95788.0,0.0459]
[1740368897353,2.113608,95794.0,95788.0,0.0459]
[1740368897559,2.13478,95794.0,95788.0,0.0459]
[1740368897796,2.114034,95794.0,95788.0,0.0459]
[1740368897989,2.21667969,95794.0,95788.0,0.0459]
[1740368898177,2.19550769,95794.0,95788.0,0.0459]
[1740368898504,1.32119269,95794.0,95788.0,0.0459]
[1740368900071,0.40923169,95794.0,95788.0,0.0459]
[1740368900469,1.64686969,95794.0,95788.0,0.0459]
[1740368902173,1.6545422,95794.0,95788.0,0.0459]
[1740368902410,1.6545422,95794.0,95774.0,0.0466]
[1740368902411,0.306617,95775.0,95774.0,0.0466]
[1740368903928,0.58847,95775.0,95774.0,0.0486]
[1740368904354,0.78896909,95775.0,95774.0,0.0506]
[1740368904581,0.78896909,95775.0,95774.0,0.002]
[1740368904986,0.306628,95768.0,95767.0,0.0017002]
[1740368905216,0.40927369,95768.0,95767.0,0.0017002]
[1740368906933,0.41127369,95768.0,95767.0,0.0017002]
[1740368907386,0.41327369,95768.0,95767.0,0.0017002]
[1740368908086,0.160628,95768.0,95767.0,0.01624105]
[1740368908300,0.004,95768.0,95767.0,0.09794105]
[1740368908545,0.004,95768.0,95767.0,0.14454105]
[1740368908734,0.004,95768.0,95767.0,0.14712761]
[1740368908958,0.004,95768.0,95767.0,0.2497733]
[1740368909634,0.002,95768.0,95767.0,0.2497733]
[1740368909849,0.156603,95784.0,95773.0,0.14284085]
[1740368910054,0.15,95783.0,95777.0,0.0466]
[1740368910267,0.15,95783.0,95778.0,0.01454085]
[1740368910467,0.15,95783.0,95780.0,0.01454085]
[1740368910667,0.15,95783.0,95782.0,0.01454085]
[1740368910873,0.15,95783.0,95782.0,0.09624085]
[1740368911078,0.15,95784.0,95782.0,0.09883631]
[1740368911724,0.001,95783.0,95782.0,0.09883631]
[1740368912550,0.001,95783.0,95782.0,0.404687]
[1740368912983,0.0978534,95809.0,95799.0,0.14284085]
[1740368913187,0.01561713,95810.0,95799.0,0.14284085]
[1740368913409,0.2165087,95837.0,95824.0,0.0817]
[1740368913607,0.02046676,95841.0,95829.0,0.01454085]
[1740368914029,0.156532,95827.0,95826.0,0.01454085]
[1740368914239,0.156529,95829.0,95826.0,0.01454085]
[1740368914456,0.156529,95829.0,95824.0,0.0817]
[1740368914457,0.15,95834.0,95825.0,0.01454085]
[1740368914674,0.156532,95827.0,95825.0,0.01454085]
[1740368915355,0.15,95826.0,95825.0,0.01454085]
[1740368915579,0.306538,95823.0,95822.0,0.0466]
[1740368915782,0.15,95823.0,95822.0,0.06114085]
[1740368915989,0.208684,95839.0,95825.0,0.156533]
[1740368916201,0.02,95862.0,95829.0,0.25083181]
[1740368916412,0.156516,95837.0,95825.0,0.01454085]
[1740368916664,0.156522,95833.0,95831.0,0.01454085]
[1740368916909,0.15,95832.0,95831.0,0.01454085]
[1740368917122,0.15,95826.0,95825.0,0.01454085]
[1740368917762,0.15,95826.0,95825.0,0.01654085]
[1740368918012,0.15,95826.0,95825.0,0.01454085]
[1740368918870,0.306538,95823.0,95822.0,0.0466]
[1740368919313,0.306538,95823.0,95822.0,0.06114085]
[1740368920507,0.001,95823.0,95822.0,0.40085974]